[Event "FIDE WSCC 65 2022"]
[Site "Assisi"]
[Date "2022.11.17"]
[Round "3.10"]
[White "Bagamasbad, Efren"]
[Black "Gaprindashvili, Nona"]
[Result "0-1"]
[ECO "A25"]
[WhiteElo "2051"]
[BlackElo "2268"]
[Annotator "TA"]
[PlyCount "146"]
[EventDate "2022.11.14"]
[EventType "swiss"]
[EventCountry "ITA"]
[SourceTitle "playchess.com"]
[Source "ChessBase"]
[SourceQuality "1"]
[TimeControl "40/5400+30:1800+30"]

{[%evp 15,146,10,13,4,10,4,2,-6,-6,-6,8,0,15,18,29,-37,-35,-37,-37,-37,-37,-35,-21,-21,-22,-26,-6,-6,0,-8,-8,-8,-7,-24,0,-15,24,0,0,-6,0,0,0,0,0,-3,0,0,0,-11,-11,-11,-11,-47,-47,-47,0,0,0,-45,-45,-45,-36,-47,-45,-83,-6,-71,-31,-49,-45,-45,-45,-47,-47,-46,0,-54,-46,-70,-46,-74,-9,-29,-17,-16,-14,-41,-41,-89,-89,-94,-95,-95,-97,-150,-147,-200,-200,-200,-200,-428,-200,-283,-200,-29983,-1888,-1404,-456,-1229,-1214,-1482,-1425,-1402,-1408,-1852,-1201,-1115,-845,-763,-610,-29980,-29981,-29979,-29978,-29984,-29985,-29990,-29987,-29987,-29988,-29990,-29991]} 1. g3 e5 2. c4 Nc6 3. Bg2 g6 4. Nc3 Bg7 5. d3 Nge7 6. e3 d6 7. Nge2 O-O 8. O-O Bd7 9. Nd5 {A25: English Opening vs King's Indian with ...Nc6 but without early d3.} Nxd5 10. cxd5 Ne7 {[#]} 11. e4 $146 {The position is equal.} ({Predecessor:} 11. d4 c6 12. dxc6 Bxc6 13. d5 Bb5 14. Re1 f5 15. Qb3 Qb6 16. Nc3 Bd3 17. Qxb6 axb6 {½-½ (40) Maletin,P (2598)-Dvoirys,S (2562) Khanty-Mansiysk 2013}) 11... c6 12. dxc6 Bxc6 13. Be3 d5 14. Bc5 Re8 {[%cal Bf8e8,Be8e7,Be7c7][%mdl 32]} 15. Nc3 (15. Qb3 $1 $11) 15... d4 $15 16. Bxe7 Rxe7 17. Nd5 Bxd5 18. exd5 Rc7 19. Rc1 Rac8 20. Rxc7 Qxc7 21. Qa4 Qb6 22. h4 {[%cal Bh2h4,Bh4h5][%mdl 32]} Bf8 23. h5 a6 24. Rb1 Qb5 25. Qd1 Qc5 26. hxg6 (26. d6 $5) 26... hxg6 27. Qg4 Bd6 28. Be4 Kg7 29. Kg2 Rh8 30. Qd7 Qb6 31. b4 Rd8 (31... Bxb4 $2 32. Qa4 $18) 32. Qg4 Qc7 (32... Bxb4 $2 33. a3 $18) 33. b5 a5 34. b6 Qc8 35. Qg5 Qd7 (35... Rh8 $15 {is more appropriate.}) 36. Rh1 $11 {Hoping for Qh6+.} Rh8 {Prevents Qh6+.} 37. Rh4 Rxh4 {The board is on fire.} 38. Qxh4 $15 {[%mdl 4096] Endgame KQB-KQB} Qc8 39. g4 Qe8 40. Qh3 Qb8 (40... Qd8 $17 41. a4 Bb4) 41. Qh4 (41. g5 $11 {remains equal.} Qe8 42. Qh6+ Kg8 43. a4) 41... Qc8 42. Qg5 Qe8 43. Bf3 Qh8 44. Qd2 Qa8 45. Qg5 Qc8 46. Be4 Qh8 47. a3 Qc8 48. Bf3 f6 ({Black should play} 48... a4 $17) 49. Qd2 $1 $11 Qc3 $36 {[%mdl 2048] Black is pushing.} 50. Qd1 Qxa3 51. g5 (51. Qc2 $5 {[%cal Rc2c8]} Bc5 52. d6 $15) 51... fxg5 52. Be4 (52. Qc2 $1 $15) 52... Be7 $1 $17 {White is now going downhill.} 53. Qg4 {Strongly threatening Qc8.} Qd6 54. Qc8 Qxb6 55. Qd7 {[#]} (55. Kf1 $142) 55... Qd6 $1 56. Qxb7 (56. Qe8 $17) 56... a4 $19 {[%cal Ba5a4,Ba4a3][%mdl 32]} 57. Qa8 {[#]} a3 58. Bf3 $2 (58. Qa7) 58... Qd7 (58... g4 $142 59. Bxg4 Qd8) 59. Kg3 (59. Be4 $142) 59... Bd6 60. Bg4 $2 (60. Be4 $19) 60... Qf7 (60... e4+ $142 61. Kh3 Qf7 62. Qa6 Qf4 63. Kg2 Qh2+ 64. Kf1 e3 65. Qa7+ Kh6 66. Qf7 a2 67. Bd1 a1=Q 68. Ke2 Qb2+ 69. Bc2 Qxc2+ 70. Kf3 Qcxf2+ 71. Kg4 Qh5#) 61. Kg2 Qf4 (61... e4 $142 {( -> ...e3)} 62. Be6 Qf8) 62. Be6 (62. Bf3 $142 g4 63. Be4) 62... Qf8 63. Qa4 Kh6 64. Qa6 Kh5 65. f3 g4 66. Bxg4+ Kh4 67. Qa5 Kg5 68. Qd2+ Qf4 {Black mates.} 69. Qa5 e4 70. dxe4 d3 71. Kf2 a2 72. Qd8+ Qf6 73. f4+ Bxf4 {Weighted Error Value: White=0.32/Black=0.28 (precise)} 0-1

[Event "FIDE WSCC 65 2022"]
[Site "Assisi"]
[Date "2022.11.17"]
[Round "3.11"]
[White "Lanc, Alois"]
[Black "Strutinskaia, Galina"]
[Result "0-1"]
[ECO "B31"]
[WhiteElo "2268"]
[BlackElo "2137"]
[Annotator "TA"]
[PlyCount "70"]
[EventDate "2022.11.14"]
[EventType "swiss"]
[EventCountry "ITA"]
[SourceTitle "playchess.com"]
[Source "ChessBase"]
[SourceQuality "1"]
[TimeControl "40/5400+30:1800+30"]

{[%evp 16,70,0,0,0,0,0,-21,0,0,0,0,0,0,7,12,5,0,27,0,29,0,0,0,0,0,0,-23,0,-20,-26,-36,0,0,0,-12,64,-27,21,0,85,0,0,0,72,34,117,106,154,102,152,33,125,-56,-77,-478,-431]} 1. e4 c5 2. Nf3 Nc6 3. Bb5 g6 4. Bxc6 bxc6 5. d3 Bg7 6. O-O d6 7. h3 Nh6 8. Nc3 O-O 9. Be3 {[#] And now Qd2 would win.} f5 {B31: Sicilian: 2...Nc6 3 Bb5 g6.} 10. Qd2 Nf7 11. Ng5 Rb8 {The position is equal.} 12. Rab1 {[#]} Bd7 $146 ({Predecessor:} 12... e5 13. Nxf7 Rxf7 14. f4 d5 15. exd5 cxd5 16. Bxc5 d4 17. Ne2 Bb7 18. b4 Qd5 {1-0 (40) Tsyhanchuk,S (2328)-Meleshko,V (2252) Lvov 2010}) 13. Rfe1 Qa5 {Threatens to win with ...Nxg5.} 14. exf5 gxf5 {[%cal Ob8b2]} 15. Nxf7 Rxf7 16. Bh6 e6 17. a3 {[%cal Ob2b4]} Kh8 18. b4 (18. Ne4 $5 Qxd2 19. Bxg7+ Rxg7 20. Nxd2 $11) 18... cxb4 19. axb4 Qc7 20. d4 Rg8 21. Re2 Qb6 22. Bxg7+ Rfxg7 23. f4 Qd8 24. Nd1 Qh4 {next ...Qxh3 is good for Black.} 25. Rb3 Be8 (25... e5 $11 26. dxe5 (26. fxe5 dxe5 27. dxe5 Be6 $17) 26... dxe5) 26. Nb2 (26. Rxe6 $2 Rxg2+ 27. Qxg2 Bf7 28. Qxg8+ Kxg8 $19) ({White should play} 26. Rf2 $1 $14) 26... Bf7 ({Don't take} 26... Bh5 27. Rf2 $14) (26... c5 {feels stronger.} 27. b5 e5 28. dxe5 (28. fxe5 $2 Bh5 $19) 28... dxe5) 27. c4 (27. Nc4 $5 {[%cal Rc4d6]}) 27... Rb8 (27... e5 $11 {keeps the balance.} 28. dxe5 Bh5) 28. Qe3 ({White should try} 28. Rd3 $16) 28... Rbg8 $11 {[#] White must now prevent ...Bh5.} 29. Qd2 Qh6 (29... Rb8 $11 {remains equal.}) 30. Rf2 Qh4 (30... e5 $1 $14) 31. Re3 $16 Rg3 (31... h6 $142) 32. Rxg3 (32. c5 $142) 32... Rxg3 (32... Qxg3 $142 33. Nd3 Rd8) 33. Kh2 (33. c5 $16) 33... Bh5 (33... Ra3 $14) 34. Qe1 $2 ({Much worse is} 34. Kh1 $6 Bg4 $11) (34. c5 $16) 34... Rb3 $15 35. Kg1 $2 {[%mdl 8192]} (35. Qd2 $17 {is tougher.}) 35... Rxb2 $1 {Weighted Error Value: White=0.50/Black=0.32} 0-1

[Event "FIDE WSCC 65 2022"]
[Site "Assisi"]
[Date "2022.11.17"]
[Round "3.12"]
[White "Tsifanskaya, Ludmila A"]
[Black "Kiefer, Gerhard"]
[Result "1/2-1/2"]
[ECO "B30"]
[WhiteElo "1919"]
[BlackElo "2260"]
[Annotator "TA"]
[PlyCount "145"]
[EventDate "2022.11.14"]
[EventType "swiss"]
[EventCountry "ITA"]
[SourceTitle "playchess.com"]
[Source "ChessBase"]
[SourceQuality "1"]
[TimeControl "40/5400+30:1800+30"]

{[%evp 16,145,19,26,12,0,0,0,-9,-32,0,0,0,0,-7,-8,1,-16,-15,-41,-27,-30,-16,-35,0,0,0,0,0,0,0,0,0,0,0,0,0,0,0,-5,-5,-6,0,0,0,-4,-6,-6,0,0,0,0,0,0,0,0,0,0,0,0,0,0,0,0,0,0,0,-13,0,-6,-6,-13,0,-6,-6,-13,0,0,0,0,0,0,0,0,0,0,0,0,0,0,0,0,0,0,0,0,0,0,0,0,0,0,0,0,0,0,0,0,0,0,0,0,0,0,0,0,0,-6,0,-7,0,-6,-6,-7,-7,-7,-7,-7,0,0,0,0]} 1. e4 c5 2. Nf3 e6 3. d3 Nc6 4. g3 Nf6 5. Bg2 Be7 6. O-O O-O 7. Re1 d6 8. c3 Bd7 9. d4 cxd4 {B30: Sicilian: 2...Nc6 3 Bb5, lines without ...g6.} 10. cxd4 d5 11. e5 Ne4 12. a3 a5 13. Nbd2 Nxd2 14. Bxd2 Qb6 {[%csl LRb2,LRd4]} 15. Bc3 a4 16. h4 Na5 {[#]} 17. Bxa5 $146 ({Predecessor:} 17. Qc2 Rfc8 18. Rad1 Rc7 19. Ng5 g6 20. Re3 Rac8 21. Rf3 Be8 22. Nh3 Nc4 23. Qc1 {1-0 (36) Wall,G (2329)-Hess,M (2334) Germany 2018}) 17... Rxa5 18. Rb1 Rfa8 19. Re3 Rb5 20. b4 {The position is equal.} axb3 21. Bf1 $1 Rba5 ({Resist} 21... b2 22. Bxb5 Qxb5 23. Rb3 $16) 22. Rexb3 Qd8 {[#] ...Ba4 is the strong threat.} 23. Rxb7 Rxa3 24. Ne1 Bc8 25. Rb8 Qc7 26. Rxa8 Rxa8 27. Qc2 Qxc2 28. Nxc2 Bf8 29. Kg2 Ba6 30. Ra1 Bxf1+ 31. Kxf1 $11 {[%mdl 4096] Endgame KRB-KRN} Rc8 32. Ra2 h5 33. Ke2 Kh7 34. Kd3 Rc7 35. Ra8 Be7 36. Rb8 Ra7 37. Kc3 g6 38. Kd3 Kg7 39. Rb6 Bd8 40. Rc6 Rb7 41. Ke2 Kf8 42. Kf3 Rb3+ 43. Kg2 Rd3 44. Kf1 Ba5 45. Ke2 Rc3 46. Rxc3 Bxc3 {KB-KN} 47. Kd3 Ba5 48. Ne3 Ke8 49. Ng2 Kd7 50. f3 Kc6 51. g4 Bd8 52. gxh5 gxh5 53. Nf4 Bxh4 54. Nxh5 Bf2 55. Nf4 Kb5 56. Nh5 Kc6 57. Nf6 Bh4 {[#] White must now prevent ...Bxf6.} 58. Nh5 Kd7 59. Nf4 Ke7 60. Ke2 Kf8 61. Ng2 $1 Bg5 62. f4 Bh6 63. Kf3 Kg7 64. Nh4 f5 65. exf6+ Kxf6 66. Ng2 Ke7 67. Nh4 Kf6 68. Ng2 Bg7 69. Ne3 Ke7 70. f5 Bxd4 71. fxe6 Bxe3 72. Kxe3 Kxe6 73. Kd4 {Weighted Error Value: White=0.03 (flawless) /Black=0.04 (flawless)} 1/2-1/2

[Event "FIDE WSCC 65 2022"]
[Site "Assisi"]
[Date "2022.11.17"]
[Round "3.13"]
[White "Maryasin, Boris"]
[Black "Ponce Navalon, Jose"]
[Result "1-0"]
[ECO "C91"]
[WhiteElo "2258"]
[BlackElo "2134"]
[Annotator "TA"]
[PlyCount "131"]
[EventDate "2022.11.14"]
[EventType "swiss"]
[EventCountry "ITA"]
[SourceTitle "playchess.com"]
[Source "ChessBase"]
[SourceQuality "1"]
[TimeControl "40/5400+30:1800+30"]

{[%evp 31,131,23,38,32,46,35,34,38,37,34,39,40,98,104,108,109,122,111,119,127,112,121,144,124,176,157,172,141,156,98,227,133,262,236,237,237,308,331,329,324,310,310,592,578,568,368,437,401,370,10,8,0,0,0,0,0,0,10,10,0,89,90,221,221,221,214,212,205,205,196,746,164,164,164,164,165,185,181,174,55,251,232,408,356,6875,7124,29979,29972,29972,29973,29971,29973,29972,29973,29968,29974,29974,29975,29968,29970,29977,29978]} 1. e4 e5 2. Nf3 Nc6 3. Bb5 a6 4. Ba4 Nf6 5. O-O Be7 6. Re1 b5 7. Bb3 d6 8. c3 O-O 9. d4 {[%cal Bd2d4,Bd4d5][%mdl 32]} Bg4 10. d5 Na5 11. Bc2 c6 12. h3 Bh5 13. dxc6 Qc7 14. Nbd2 {[%cal Bb1d2,Bd2f1,Bf1g3][%mdl 32]} Nxc6 15. Nf1 Rac8 16. Ng3 Bg6 {[%cal Od6d5]} 17. Nh4 {[#] C91: Closed Ruy Lopez: 7...d6 8 c3 0-0 9 d4.} d5 $146 ({Predecessor:} 17... Rfd8 18. Nhf5 d5 19. exd5 Nxd5 20. Qf3 Bf8 21. Bg5 f6 22. Bb3 Bf7 23. Red1 Nce7 24. Rd3 Nxf5 25. Nxf5 Ne7 26. Rxd8 Rxd8 {½-½ (26) Balcazar Novoa,L (2318)-Mendez,A (2237) ICCF email 2006}) 18. Nxg6 hxg6 19. exd5 {White is slightly better.} Rfd8 20. Bb3 Na5 21. Qe2 Nxb3 ({Black should try} 21... Nc4 $14) 22. axb3 $16 Rxd5 23. Rxa6 Rcd8 24. Be3 {Strongly threatening Bb6.} Bc5 {Prevents Bb6.} 25. b4 Bxe3 26. Qxe3 (26. fxe3 $6 Rd2 27. Qxb5 Rxb2 $11) 26... Rd1 27. Ra1 Nd5 (27... R1d5 $16 28. Ra7 Qb8) 28. Qe2 Nf4 29. Qxb5 R1d5 30. Qf1 (30. Qa6 $142) 30... Rd2 (30... Nd3 $16) 31. Rad1 ({Better is} 31. Ne4 $1 $18 {[%cal Re4d2]}) 31... Qc6 (31... f5 $16) 32. Rxd2 Rxd2 33. b5 $1 (33. Rxe5 $2 Rd1 $3 {[%mdl 512]} 34. Re8+ Kh7 $19) 33... Qb7 34. Ne4 ({Not} 34. Rxe5 $2 Rd1 $3 {[%mdl 512]} 35. Re4 (35. Re8+ $2 Kh7 $19) 35... Rxf1+ 36. Kxf1 Qxb5+ 37. Ne2 Qd3 $1 $19) 34... Rxb2 35. g3 Ne6 {[%cal Bf4e6,Be6g5,Bg5f3][%mdl 32]} 36. Rb1 $1 {[%cal Be1b1,Bb1b2,Bb2e2][%mdl 32]} Qxe4 $2 (36... Rxb1 {might work better.} 37. Qxb1 Qd5) 37. Rxb2 $18 {[%mdl 4096] Endgame KQR-KQN} Ng5 38. f3 Nxf3+ {[#]} 39. Kf2 $1 ({Worse is} 39. Kh1 Nd2+ 40. Qg2 Qe1+ 41. Qg1 Qe4+ 42. Qg2 Qe1+ 43. Qg1 Qe4+ 44. Qg2 $11) 39... Ng5 {[#]} 40. Qg2 {Prevents Qf3+.} (40. Qe2 $1 $18 {[%cal Re2e4] Hoping for Qxe4.} Nxh3+ 41. Ke1 Qh1+ 42. Kd2) 40... Qd3 $11 41. Re2 {Black must now prevent h4.} Qxb5 42. h4 Qb6+ 43. Re3 Ne6 44. Qe4 Nc5 45. Qc4 e4 (45... Kh7 $11 {remains equal.}) 46. Kg2 $16 Nd3 (46... Qd6 $16 47. Re2 Qd1) 47. Qxe4 $18 Qb2+ 48. Re2 Qxc3 49. Qe8+ Kh7 50. Qxf7 Ne1+ $2 (50... Ne5 51. Qf4 Nd7) 51. Kf2 $2 (51. Kh3 {Intending Re8 and mate.} Qf3 52. Qxf3 Nxf3 53. Kg4) 51... Nd3+ 52. Kg1 Ne5 53. Qf4 Nf3+ 54. Kf2 Nd4 55. Rd2 (55. Re1 $18) 55... Nb3 $2 (55... Nf5 $14) 56. Rd6 {[%cal Oh4h5] Threatens to win with h5!} Qc2+ $2 (56... Nc5 57. Qd4 Qc2+ 58. Kg1 Qb1+ 59. Kh2 Qf5) 57. Kf3 Nc1 $2 (57... Qc5 58. Kg2 Qc2+ 59. Qf2 Qc4) 58. Qe4 Qb3+ 59. Kg2 {White mates.} Qa2+ 60. Kh3 Qf7 61. h5 Qf5+ 62. Qxf5 gxf5 63. Kh4 Ne2 64. Rd5 f4 65. g4 {[%cal Bg3g4,Bg4g5][%mdl 32]} Ng1 66. g5 {Weighted Error Value: White=0.38/Black=0.52} 1-0

[Event "FIDE WSCC 65 2022"]
[Site "Assisi"]
[Date "2022.11.17"]
[Round "3.14"]
[White "Kierzek, Matthias"]
[Black "Pierangeli, Andrea"]
[Result "1/2-1/2"]
[ECO "A52"]
[WhiteElo "2237"]
[BlackElo "1779"]
[Annotator "TA"]
[PlyCount "85"]
[EventDate "2022.11.14"]
[EventType "swiss"]
[EventCountry "ITA"]
[SourceTitle "playchess.com"]
[Source "ChessBase"]
[SourceQuality "1"]
[TimeControl "40/5400+30:1800+30"]

{[%evp 22,85,37,41,58,51,55,56,56,53,53,27,60,41,37,42,40,28,50,43,63,67,93,76,101,114,94,103,104,86,86,83,93,84,96,25,25,25,43,25,25,22,41,29,70,70,71,56,75,31,60,60,74,10,10,10,10,0,0,0,0,0,0,0,0,0]} 1. d4 {[%cal Bd2d4,Bd4e5][%mdl 32]} Nf6 2. c4 e5 3. dxe5 Ng4 4. Bf4 Nc6 5. Nf3 Bb4+ 6. Nbd2 Qe7 7. e3 Ngxe5 8. Nxe5 Nxe5 9. Be2 O-O 10. O-O Bxd2 11. Qxd2 d6 12. b4 b6 {A52: Budapest Gambit.} 13. c5 Be6 14. cxd6 cxd6 {White is slightly better.} 15. Rfd1 Rfd8 16. Rac1 f6 {[#]} 17. Qb2 $146 ({Predecessor:} 17. Bg3 d5 18. Qd4 Nc4 19. Qc3 b5 20. Bf3 Rd7 21. Rd3 Rad8 22. Rcd1 a6 23. a3 {1-0 (46) Bayo Milagro,A (2285)-Bryakin,M (2465) Chess.com INT 2022}) 17... Rac8 18. Ba6 Rxc1 19. Rxc1 h5 20. h4 Qf7 21. a4 Qg6 22. Bg3 Qe4 23. Qd4 Qxd4 24. exd4 Nf7 25. Rc7 Rd7 26. Rc8+ Kh7 27. Bb5 {White is more active. This bishop pair is nice.} Re7 28. Re8 (28. Bd3+ $16 g6 29. Rc1) 28... Rxe8 $11 29. Bxe8 {[%mdl 4096] Endgame KBB-KBN} a6 30. Kf1 Kg8 31. Ke2 Bc4+ 32. Kd2 g5 33. Bc6 Kf8 34. Kc3 Bf1 35. Bf3 gxh4 36. Bxh4 Ng5 37. Bd5 (37. Bxh5 $16 Bxg2 38. Be2) 37... Ke7 {The position is equal.} 38. Bg3 Ne6 39. Bc4 Bxc4 40. Kxc4 {[#] b5 is the strong threat.} Nc7 {aiming for ...b5+.} 41. b5 axb5+ 42. axb5 Ke6 {Inhibits d5+.} 43. Bf4 {Weighted Error Value: White=0.13 (very precise) /Black=0.10 (very precise)} 1/2-1/2

[Event "FIDE WSCC 65 2022"]
[Site "Assisi"]
[Date "2022.11.17"]
[Round "3.15"]
[White "Shaffer, Alexander"]
[Black "Werner, Clemens"]
[Result "1-0"]
[ECO "B15"]
[WhiteElo "1688"]
[BlackElo "2236"]
[Annotator "TA"]
[PlyCount "41"]
[EventDate "2022.11.14"]
[EventType "swiss"]
[EventCountry "ITA"]
[SourceTitle "playchess.com"]
[Source "ChessBase"]
[SourceQuality "1"]
[TimeControl "40/5400+30:1800+30"]

{[%evp 12,41,45,-4,56,56,60,53,63,43,54,39,60,61,79,79,125,14,6,7,11,-10,0,-33,0,0,41,37,431,388,478,448]} 1. e4 {[%cal Be2e4,Be4e5][%mdl 32]} c6 2. d4 d5 3. Nc3 g6 4. Nf3 Bg7 5. h3 Nf6 6. e5 Ne4 7. Bd3 (7. Nxe4 $14 {feels stronger.} dxe4 8. Ng5) 7... Bf5 {B15: Caro-Kann: 3 Nc3: 3...g6 and 3...dxe4 4 Nxe4 Nf6 5 Nxf6+ exf6.} ({Black should try} 7... Nxc3 $1 $11 8. bxc3 c5) 8. O-O $14 Nxc3 9. bxc3 {[#] Hoping for Bxf5.} Qd7 $146 {White is slightly better.} ({Predecessor:} 9... Bxd3 10. cxd3 O-O 11. Rb1 Qc7 12. Re1 e6 13. Ba3 Rd8 14. Bd6 Qd7 15. c4 b5 {1-0 (31) Landa,K (2615)-Wolferink,F (2136) Vlissingen 2008}) 10. a4 O-O 11. Ba3 Re8 12. Re1 Bxd3 13. Qxd3 Na6 {[#]} (13... Qc8 $142) 14. Ng5 {White is more active.} (14. e6 $1 $16 {[%cal Re6d7]} fxe6 15. h4) 14... Nc7 $11 15. Rab1 ({Don't play} 15. Qf3 f6 16. e6 Qc8 $17) 15... Rab8 16. f4 Bh6 17. Qd2 f6 18. Nf3 Qf5 19. Bc1 {[%cal Oe5e6]} Ne6 $2 {[%mdl 8192] [#]} (19... Qd7 $14) 20. g4 $1 $18 Qxf4 21. Qg2 {Weighted Error Value: White=0.21 (precise) /Black=0.57} 1-0